[Event "Open Nuevo Centro. Jornada 2"]
[Site "Chess.com"]
[Date "2020.06.26"]
[Round "4"]
[White "Méndez Giménez , Néstor Emmanuel"]
[Black "Camison Zornoza, Cesar"]
[Result "1-0"]
[WhiteElo "1120"]
[BlackElo "1715"]
[TimeControl "180+2"]
[EndTime "11:12:01 PDT"]
[Termination "Victoria de NestorMendez8 por jaque mate"]

1. e4 {[%clk 0:03:01.9]} 1... Nf6 {[%clk 0:02:59.1]} 2. Nc3 {[%clk 0:03:00]}
2... d5 {[%clk 0:02:59.7]} 3. Bd3 {[%clk 0:02:57]} 3... dxe4 {[%clk 0:02:59.7]}
4. Nxe4 {[%clk 0:02:51.8]} 4... Nxe4 {[%clk 0:02:59.2]} 5. Bxe4 {[%clk
0:02:51.5]} 5... c6 {[%clk 0:03:00.3]} 6. b3 {[%clk 0:02:50.8]} 6... Nd7 {[%clk
0:02:59.9]} 7. Bb2 {[%clk 0:02:50.5]} 7... Nf6 {[%clk 0:02:59.5]} 8. Bf3 {[%clk
0:02:50.1]} 8... Bf5 {[%clk 0:02:55.4]} 9. d3 {[%clk 0:02:46.1]} 9... e6 {[%clk
0:02:55.5]} 10. Ne2 {[%clk 0:02:35.7]} 10... Bb4+ {[%clk 0:02:53.3]} 11. c3
{[%clk 0:02:34.1]} 11... Bd6 {[%clk 0:02:53.6]} 12. O-O {[%clk 0:02:33.5]} 12...
O-O {[%clk 0:02:54.6]} 13. c4 {[%clk 0:02:33.9]} 13... Ng4 {[%clk 0:02:37.8]}
14. Bxg4 {[%clk 0:02:24.3]} 14... Bxg4 {[%clk 0:02:38.2]} 15. Qd2 {[%clk
0:02:21.8]} 15... Qh4 {[%clk 0:02:34.1]} 16. g3 {[%clk 0:02:17.1]} 16... Qh3
{[%clk 0:02:22]} 17. Qg5 {[%clk 0:02:11]} 17... f6 {[%clk 0:02:18.3]} 18. Qe3
{[%clk 0:01:56.4]} 18... Rae8 {[%clk 0:02:15.9]} 19. c5 {[%clk 0:01:55.3]} 19...
Bc7 {[%clk 0:02:08.1]} 20. Nf4 {[%clk 0:01:52]} 20... Bxf4 {[%clk 0:02:08.4]}
21. Qxf4 {[%clk 0:01:52.3]} 21... e5 {[%clk 0:02:05.3]} 22. Qc4+ {[%clk
0:01:51.7]} 22... Kh8 {[%clk 0:02:04.9]} 23. Qe4 {[%clk 0:01:50.2]} 23... f5
{[%clk 0:02:01.4]} 24. Qg2 {[%clk 0:01:46.9]} 24... Qh5 {[%clk 0:02:01.8]} 25.
f3 {[%clk 0:01:37.3]} 25... Bh3 {[%clk 0:02:02.7]} 26. Qf2 {[%clk 0:01:32.2]}
26... Bxf1 {[%clk 0:02:03.5]} 27. Rxf1 {[%clk 0:01:31.7]} 27... e4 {[%clk
0:02:04.7]} 28. fxe4 {[%clk 0:01:31.4]} 28... f4 {[%clk 0:01:51.7]} 29. gxf4
{[%clk 0:01:30.9]} 29... Re6 {[%clk 0:01:49.1]} 30. f5 {[%clk 0:01:22.8]} 30...
Rg6+ {[%clk 0:01:41.1]} 31. Kh1 {[%clk 0:01:17.6]} 31... Rh6 {[%clk 0:01:42.1]}
32. Rg1 {[%clk 0:01:11.5]} 32... Rg8 {[%clk 0:01:32.6]} 33. Qg3 {[%clk
0:01:03.4]} 33... Qf7 {[%clk 0:01:29.4]} 34. f6 {[%clk 0:00:53.6]} 34... g6
{[%clk 0:01:23.9]} 35. Qc7 {[%clk 0:00:47]} 35... Qxc7 {[%clk 0:01:10.2]} 36.
f7+ {[%clk 0:00:47.3]} 36... Rg7 {[%clk 0:01:03]} 37. f8=Q# {[%clk 0:00:43.8]}
1

[Event "Open Nuevo Centro. Jornada 2"]
[Site "Chess.com"]
[Date "2020.06.26"]
[Round "4"]
[White "Valero Martinez, Óscar"]
[Black "Rabbani Perez, Ayoub "]
[Result "1-0"]
[WhiteElo "878"]
[BlackElo "221"]
[TimeControl "180+2"]
[EndTime "11:12:08 PDT"]
[Termination "Victoria de Oscar12000 por tiempo"]

1. e4 {[%clk 0:03:00.3]} 1... e5 {[%clk 0:02:59.8]} 2. Nf3 {[%clk 0:03:00.7]}
2... Nf6 {[%clk 0:02:59.2]} 3. Nc3 {[%clk 0:03:00]} 3... Nc6 {[%clk 0:02:54.7]}
4. Bc4 {[%clk 0:03:00.5]} 4... d6 {[%clk 0:02:43.6]} 5. Ng5 {[%clk 0:02:58.8]}
5... h6 {[%clk 0:02:35.1]} 6. Nxf7 {[%clk 0:02:57.8]} 6... Qd7 {[%clk 0:02:26]}
7. Nxh8 {[%clk 0:02:58.2]} 7... Nd4 {[%clk 0:02:14.8]} 8. Qh5+ {[%clk
0:02:58.2]} 8... Nxh5 {[%clk 0:02:13.1]} 9. Bf7+ {[%clk 0:02:54.5]} 9... Kd8
{[%clk 0:02:09.6]} 10. Bxh5 {[%clk 0:02:51.7]} 10... Nxc2+ {[%clk 0:02:00.4]}
11. Kf1 {[%clk 0:02:48.6]} 11... Nxa1 {[%clk 0:01:59.7]} 12. Nf7+ {[%clk
0:02:48.7]} 12... Ke7 {[%clk 0:01:55.7]} 13. Nd5+ {[%clk 0:02:43.9]} 13... Ke8
{[%clk 0:01:31]} 14. Nxh6+ {[%clk 0:02:37.2]} 14... Kd8 {[%clk 0:01:23.6]} 15.
Nf7+ {[%clk 0:02:37.8]} 15... Ke8 {[%clk 0:01:21]} 16. Nxe5+ {[%clk 0:02:31.6]}
16... Qf7 {[%clk 0:01:13.8]} 17. Bxf7+ {[%clk 0:02:27.5]} 17... Kd8 {[%clk
0:01:12]} 18. Bg6 {[%clk 0:02:23.5]} 18... Bg4 {[%clk 0:01:02.1]} 19. Nf7+
{[%clk 0:02:19.8]} 19... Kc8 {[%clk 0:00:59.7]} 20. Nf6 {[%clk 0:02:18.7]} 20...
d5 {[%clk 0:00:57.2]} 21. Nxg4 {[%clk 0:02:08.9]} 21... dxe4 {[%clk 0:00:56.5]}
22. Bf5+ {[%clk 0:02:08.7]} 22... Kb8 {[%clk 0:00:45.8]} 23. Bxe4 {[%clk
0:02:07.9]} 23... Bd6 {[%clk 0:00:42]} 24. Ne3 {[%clk 0:02:02.9]} 24... Bf4
{[%clk 0:00:35]} 25. Nd5 {[%clk 0:01:46.5]} 25... Bd6 {[%clk 0:00:31.3]} 26. b3
{[%clk 0:01:45.3]} 26... g6 {[%clk 0:00:30]} 27. h4 {[%clk 0:01:42.1]} 27... a5
{[%clk 0:00:28.7]} 28. Rh3 {[%clk 0:01:42.3]} 28... c6 {[%clk 0:00:27]} 29. Nb6
{[%clk 0:01:39.4]} 29... Ra7 {[%clk 0:00:24.7]} 30. Nxd6 {[%clk 0:01:36.6]}
30... Ra6 {[%clk 0:00:22.1]} 31. Nd7+ {[%clk 0:01:36.8]} 31... Ka7 {[%clk
0:00:19.9]} 32. d4 {[%clk 0:01:33.8]} 32... Rb6 {[%clk 0:00:17.5]} 33. d5 {[%clk
0:01:29.8]} 33... Rb5 {[%clk 0:00:16.6]} 34. Be3+ {[%clk 0:01:30.2]} 34... Rc5
{[%clk 0:00:11.8]} 35. Bxc5+ {[%clk 0:01:29.8]} 35... b6 {[%clk 0:00:09.3]} 36.
Bxb6+ {[%clk 0:01:29]} 36... Ka6 {[%clk 0:00:04.1]} 37. Nb8+ {[%clk 0:01:28.7]}
1

[Event "Open Nuevo Centro. Jornada 2"]
[Site "Chess.com"]
[Date "2020.06.26"]
[Round "4"]
[White "Amorós Pérez, Manuel David"]
[Black "SIMARRO PEIRÓ, ANDRÉS"]
[Result "1-0"]
[WhiteElo "1643"]
[BlackElo "1079"]
[TimeControl "180+2"]
[EndTime "11:12:12 PDT"]
[Termination "Victoria de mpad1984 por jaque mate"]

1. e4 {[%clk 0:03:01.9]} 1... e5 {[%clk 0:02:59.1]} 2. Nf3 {[%clk 0:03:02.8]}
2... Nc6 {[%clk 0:03:00.3]} 3. Bc4 {[%clk 0:03:03.9]} 3... Bc5 {[%clk 0:03:01]}
4. c3 {[%clk 0:03:04.9]} 4... Nf6 {[%clk 0:03:00.2]} 5. d4 {[%clk 0:03:06.1]}
5... exd4 {[%clk 0:03:00.5]} 6. cxd4 {[%clk 0:03:08]} 6... Bb4+ {[%clk
0:02:59.8]} 7. Bd2 {[%clk 0:03:09.4]} 7... Nxe4 {[%clk 0:02:54.7]} 8. Bxb4
{[%clk 0:03:06.4]} 8... Nxb4 {[%clk 0:02:54.5]} 9. Bxf7+ {[%clk 0:03:05.2]} 9...
Kxf7 {[%clk 0:02:53.5]} 10. Qb3+ {[%clk 0:03:06.5]} 10... d5 {[%clk 0:02:36.6]}
11. Qxb4 {[%clk 0:03:04.3]} 11... Re8 {[%clk 0:02:21.4]} 12. O-O {[%clk
0:03:04.6]} 12... Kg8 {[%clk 0:02:17.6]} 13. Nc3 {[%clk 0:03:03]} 13... Nf6
{[%clk 0:02:15.4]} 14. Rfe1 {[%clk 0:03:02.3]} 14... Rxe1+ {[%clk 0:02:14.9]}
15. Rxe1 {[%clk 0:03:02.8]} 15... a5 {[%clk 0:02:14.8]} 16. Qe7 {[%clk
0:02:49.1]} 16... Qxe7 {[%clk 0:02:05.6]} 17. Rxe7 {[%clk 0:02:49.6]} 17... Bg4
{[%clk 0:02:04.7]} 18. Ne5 {[%clk 0:02:48.3]} 18... Rc8 {[%clk 0:01:59.5]} 19.
Nxg4 {[%clk 0:02:41.4]} 19... Nxg4 {[%clk 0:01:57.5]} 20. Nxd5 {[%clk
0:02:42.6]} 20... c6 {[%clk 0:01:50.1]} 21. Nb6 {[%clk 0:02:35.9]} 21... Rb8
{[%clk 0:01:45.5]} 22. h3 {[%clk 0:02:35.1]} 22... Nh6 {[%clk 0:01:41.5]} 23. g4
{[%clk 0:02:30.5]} 23... Nf7 {[%clk 0:01:34.1]} 24. Nc4 {[%clk 0:02:31.2]} 24...
Ng5 {[%clk 0:01:29.8]} 25. Kg2 {[%clk 0:02:28.9]} 25... b5 {[%clk 0:01:26.7]}
26. Nxa5 {[%clk 0:02:29.2]} 26... Ra8 {[%clk 0:01:26.5]} 27. b4 {[%clk
0:02:30.2]} 27... Rc8 {[%clk 0:01:23.8]} 28. f4 {[%clk 0:02:23.7]} 28... Nf7
{[%clk 0:01:21.1]} 29. Re6 {[%clk 0:02:24.3]} 29... Nd8 {[%clk 0:01:15.2]} 30.
Rd6 {[%clk 0:02:19.1]} 30... Kf7 {[%clk 0:01:08.6]} 31. Kf3 {[%clk 0:02:19.7]}
31... Ke7 {[%clk 0:01:08.5]} 32. Rxd8 {[%clk 0:02:07.6]} 32... Rxd8 {[%clk
0:00:55.7]} 33. Nxc6+ {[%clk 0:02:08.2]} 33... Ke8 {[%clk 0:00:19.6]} 34. Nxd8
{[%clk 0:02:08.2]} 34... Kxd8 {[%clk 0:00:19.1]} 35. Ke4 {[%clk 0:02:10.1]}
35... Kc7 {[%clk 0:00:17.2]} 36. Ke5 {[%clk 0:02:10.5]} 36... Kc6 {[%clk
0:00:14.8]} 37. d5+ {[%clk 0:02:11.1]} 37... Kd7 {[%clk 0:00:13.4]} 38. d6
{[%clk 0:02:11.6]} 38... Kd8 {[%clk 0:00:13]} 39. Ke6 {[%clk 0:02:11.5]} 39...
Ke8 {[%clk 0:00:13.3]} 40. d7+ {[%clk 0:02:11.6]} 40... Kd8 {[%clk 0:00:09.9]}
41. Kf7 {[%clk 0:02:12.8]} 41... g6 {[%clk 0:00:08.5]} 42. Kg7 {[%clk
0:02:13.7]} 42... Kxd7 {[%clk 0:00:09.4]} 43. Kxh7 {[%clk 0:02:14.9]} 43... Ke6
{[%clk 0:00:10]} 44. Kxg6 {[%clk 0:02:16.1]} 44... Ke7 {[%clk 0:00:10.7]} 45. f5
{[%clk 0:02:17]} 45... Kf8 {[%clk 0:00:11.4]} 46. f6 {[%clk 0:02:18.4]} 46...
Kg8 {[%clk 0:00:12.1]} 47. f7+ {[%clk 0:02:19.4]} 47... Kf8 {[%clk 0:00:12.6]}
48. h4 {[%clk 0:02:20]} 48... Ke7 {[%clk 0:00:10.7]} 49. Kg7 {[%clk 0:02:21.5]}
49... Ke6 {[%clk 0:00:11.1]} 50. f8=Q {[%clk 0:02:22.3]} 50... Kd7 {[%clk
0:00:10.9]} 51. Qf6 {[%clk 0:02:23.3]} 51... Kc7 {[%clk 0:00:10.2]} 52. Qe6
{[%clk 0:02:24.3]} 52... Kd8 {[%clk 0:00:10.3]} 53. Qf7 {[%clk 0:02:25.1]} 53...
Kc8 {[%clk 0:00:10.7]} 54. Kf6 {[%clk 0:02:26.5]} 54... Kd8 {[%clk 0:00:11.3]}
55. g5 {[%clk 0:02:27.6]} 55... Kc8 {[%clk 0:00:12.1]} 56. g6 {[%clk 0:02:29.2]}
56... Kd8 {[%clk 0:00:13.1]} 57. g7 {[%clk 0:02:30.8]} 57... Kc8 {[%clk
0:00:14.6]} 58. g8=R# {[%clk 0:02:31.5]} 1

[Event "Open Nuevo Centro. Jornada 2"]
[Site "Chess.com"]
[Date "2020.06.26"]
[Round "4"]
[White "Zamora Soler, Raul"]
[Black "Lopez Mateo, Juan Carlos"]
[Result "0-1"]
[WhiteElo "1766"]
[BlackElo "1995"]
[TimeControl "180+2"]
[EndTime "11:12:13 PDT"]
[Termination "Victoria de Tarantantinov por jaque mate"]

1. e4 {[%clk 0:03:01.9]} 1... c5 {[%clk 0:02:55]} 2. Nf3 {[%clk 0:03:02.5]} 2...
e6 {[%clk 0:02:56.2]} 3. d4 {[%clk 0:03:03.5]} 3... cxd4 {[%clk 0:02:57.8]} 4.
Nxd4 {[%clk 0:03:04.5]} 4... a6 {[%clk 0:02:59.4]} 5. c4 {[%clk 0:03:05.5]} 5...
Nf6 {[%clk 0:03:00.1]} 6. Nc3 {[%clk 0:03:06.2]} 6... Bb4 {[%clk 0:03:01.6]} 7.
f3 {[%clk 0:03:07.2]} 7... Qc7 {[%clk 0:02:47.7]} 8. Be3 {[%clk 0:03:04.4]} 8...
O-O {[%clk 0:02:44.2]} 9. Rc1 {[%clk 0:03:04]} 9... Nc6 {[%clk 0:02:41.9]} 10.
a3 {[%clk 0:03:03.2]} 10... Be7 {[%clk 0:02:35.4]} 11. Be2 {[%clk 0:03:03.8]}
11... b6 {[%clk 0:02:24.5]} 12. O-O {[%clk 0:03:03.5]} 12... Bb7 {[%clk
0:02:12.2]} 13. Qd2 {[%clk 0:02:59.8]} 13... Bd6 {[%clk 0:01:45.2]} 14. h3
{[%clk 0:02:57.5]} 14... Nh5 {[%clk 0:01:40.4]} 15. Rfd1 {[%clk 0:02:57.6]}
15... Bh2+ {[%clk 0:01:36]} 16. Kf1 {[%clk 0:02:53.1]} 16... f5 {[%clk
0:01:33.5]} 17. Nxc6 {[%clk 0:02:39.2]} 17... Bxc6 {[%clk 0:01:29.8]} 18. exf5
{[%clk 0:02:34.9]} 18... Ng3+ {[%clk 0:01:27.1]} 19. Ke1 {[%clk 0:02:35.6]}
19... Nxf5 {[%clk 0:01:25.3]} 20. Bf2 {[%clk 0:02:30.6]} 20... Bf4 {[%clk
0:01:16.3]} 21. Qd3 {[%clk 0:02:28.8]} 21... Bxc1 {[%clk 0:01:05.9]} 22. Rxc1
{[%clk 0:02:27.5]} 22... Qh2 {[%clk 0:01:06]} 23. Bf1 {[%clk 0:02:19.9]} 23...
d5 {[%clk 0:00:57.6]} 24. cxd5 {[%clk 0:02:19.5]} 24... exd5 {[%clk 0:00:54.5]}
25. Kd1 {[%clk 0:01:21.7]} 25... Rac8 {[%clk 0:00:47.6]} 26. b4 {[%clk
0:01:16.2]} 26... d4 {[%clk 0:00:44.3]} 27. Ne4 {[%clk 0:01:04.7]} 27... Ba4+
{[%clk 0:00:41.1]} 28. Kd2 {[%clk 0:01:05.3]} 28... Qf4+ {[%clk 0:00:37.4]} 29.
Ke2 {[%clk 0:00:56.6]} 29... Qxc1 {[%clk 0:00:37.8]} 30. Bxd4 {[%clk 0:00:45.3]}
30... Rc2+ {[%clk 0:00:33.9]} 31. Nd2 {[%clk 0:00:45.7]} 31... Rxd2+ {[%clk
0:00:24.7]} 32. Qxd2 {[%clk 0:00:46.3]} 32... Bb5+ {[%clk 0:00:22.4]} 33. Kf2
{[%clk 0:00:39]} 33... Qxf1# {[%clk 0:00:21.7]} 0

[Event "Open Nuevo Centro. Jornada 2"]
[Site "Chess.com"]
[Date "2020.06.26"]
[Round "4"]
[White "Yuste Valenzuela, Alejandro"]
[Black "Montes Molina, Ivan"]
[Result "0-1"]
[WhiteElo "1845"]
[BlackElo "1285"]
[TimeControl "180+2"]
[EndTime "11:12:16 PDT"]
[Termination "Victoria de Ivanbarad por abandono"]

1. e4 {[%clk 0:03:01.9]} 1... e6 {[%clk 0:03:01.1]} 2. d4 {[%clk 0:03:01.9]}
2... d5 {[%clk 0:03:02.6]} 3. Nc3 {[%clk 0:03:02.8]} 3... Bb4 {[%clk 0:03:02.3]}
4. e5 {[%clk 0:03:02.6]} 4... c5 {[%clk 0:03:02.6]} 5. dxc5 {[%clk 0:03:03.1]}
5... Qa5 {[%clk 0:02:59.4]} 6. Bd2 {[%clk 0:03:03]} 6... Qxc5 {[%clk 0:02:53.3]}
7. Nf3 {[%clk 0:03:03.1]} 7... Nc6 {[%clk 0:02:52.8]} 8. Bd3 {[%clk 0:03:02.2]}
8... Bxc3 {[%clk 0:02:46.6]} 9. Bxc3 {[%clk 0:03:02.7]} 9... d4 {[%clk 0:02:47]}
10. Bd2 {[%clk 0:02:49.6]} 10... Nxe5 {[%clk 0:02:43.5]} 11. O-O {[%clk
0:02:49.6]} 11... Nxd3 {[%clk 0:02:39]} 12. cxd3 {[%clk 0:02:51.5]} 12... Ne7
{[%clk 0:02:38.5]} 13. Bf4 {[%clk 0:02:49.4]} 13... O-O {[%clk 0:02:31.7]} 14.
Rc1 {[%clk 0:02:48.4]} 14... Qb6 {[%clk 0:02:27.4]} 15. b3 {[%clk 0:02:42.5]}
15... Bd7 {[%clk 0:02:27.7]} 16. Ne5 {[%clk 0:02:31.2]} 16... Rfd8 {[%clk
0:02:16.4]} 17. Nc4 {[%clk 0:02:17.7]} 17... Qa6 {[%clk 0:02:08.3]} 18. Bc7
{[%clk 0:01:35.4]} 18... Rf8 {[%clk 0:01:49.8]} 19. Nd6 {[%clk 0:01:20.8]} 19...
Nd5 {[%clk 0:01:47.6]} 20. Ne4 {[%clk 0:01:06.3]} 20... Rac8 {[%clk 0:01:43]}
21. Bg3 {[%clk 0:00:57.3]} 21... Rxc1 {[%clk 0:01:42.4]} 22. Qxc1 {[%clk
0:00:58.1]} 22... Rc8 {[%clk 0:01:42.6]} 23. Qd2 {[%clk 0:00:50]} 23... Nc3
{[%clk 0:01:33.1]} 24. Nd6 {[%clk 0:00:39.9]} 24... Rc6 {[%clk 0:01:22.1]} 25.
Nc4 {[%clk 0:00:39.5]} 25... b5 {[%clk 0:01:13]} 26. Ne5 {[%clk 0:00:39.6]}
26... Rc7 {[%clk 0:01:11.2]} 27. Nf3 {[%clk 0:00:31.5]} 27... Rc8 {[%clk
0:00:57.8]} 28. Nxd4 {[%clk 0:00:32.2]} 28... b4 {[%clk 0:00:45.5]} 29. Nf3
{[%clk 0:00:30.7]} 29... h6 {[%clk 0:00:42.7]} 30. Ne5 {[%clk 0:00:30.8]} 30...
Bb5 {[%clk 0:00:32.1]} 31. Qf4 {[%clk 0:00:26.8]} 31... Ne2+ {[%clk 0:00:29.9]}
0

[Event "Open Nuevo Centro. Jornada 2"]
[Site "Chess.com"]
[Date "2020.06.26"]
[Round "4"]
[White "Gerona Maura, Jesus"]
[Black "Lloret Ramis, Juan José"]
[Result "0-1"]
[WhiteElo "1751"]
[BlackElo "1977"]
[TimeControl "180+2"]
[EndTime "11:12:31 PDT"]
[Termination "Victoria de Amiplim por jaque mate"]

1. d4 {[%clk 0:03:01.9]} 1... d5 {[%clk 0:02:59.9]} 2. c4 {[%clk 0:03:02.3]}
2... e6 {[%clk 0:03:01.4]} 3. Nf3 {[%clk 0:03:02.8]} 3... Nf6 {[%clk 0:03:02.6]}
4. g3 {[%clk 0:03:04]} 4... Be7 {[%clk 0:03:02.9]} 5. Bg2 {[%clk 0:03:04.1]}
5... O-O {[%clk 0:03:04.2]} 6. O-O {[%clk 0:03:05]} 6... dxc4 {[%clk 0:03:05.6]}
7. Qc2 {[%clk 0:03:04.2]} 7... a6 {[%clk 0:03:05.5]} 8. a4 {[%clk 0:03:04.8]}
8... Bd7 {[%clk 0:03:05]} 9. Qxc4 {[%clk 0:03:05.7]} 9... Bc6 {[%clk 0:03:06.5]}
10. Bf4 {[%clk 0:03:05.5]} 10... a5 {[%clk 0:03:02.2]} 11. Nbd2 {[%clk
0:03:01.2]} 11... Na6 {[%clk 0:03:03.3]} 12. Rac1 {[%clk 0:02:59.9]} 12... Nb4
{[%clk 0:02:59.3]} 13. Ne5 {[%clk 0:02:56.6]} 13... Bxg2 {[%clk 0:02:59.2]} 14.
Kxg2 {[%clk 0:02:55.8]} 14... Nfd5 {[%clk 0:02:31.7]} 15. e3 {[%clk 0:02:31.4]}
15... g5 {[%clk 0:02:17]} 16. e4 {[%clk 0:02:26.3]} 16... gxf4 {[%clk
0:02:10.7]} 17. exd5 {[%clk 0:02:26.4]} 17... Qxd5+ {[%clk 0:02:11.5]} 18. Qxd5
{[%clk 0:02:22.5]} 18... Nxd5 {[%clk 0:02:12.2]} 19. Ne4 {[%clk 0:02:16.5]}
19... Rfd8 {[%clk 0:01:20.5]} 20. Nc5 {[%clk 0:02:11.8]} 20... b6 {[%clk
0:01:07.3]} 21. Ncd3 {[%clk 0:02:07.6]} 21... fxg3 {[%clk 0:00:50.7]} 22. hxg3
{[%clk 0:02:03]} 22... f6 {[%clk 0:00:51.6]} 23. Nc6 {[%clk 0:02:02.7]} 23...
Re8 {[%clk 0:00:47.2]} 24. Nxe7+ {[%clk 0:02:00.6]} 24... Rxe7 {[%clk
0:00:48.6]} 25. Rfe1 {[%clk 0:01:55.6]} 25... Rd8 {[%clk 0:00:49.6]} 26. Rc6
{[%clk 0:01:49.7]} 26... Kf7 {[%clk 0:00:49.7]} 27. f4 {[%clk 0:01:33]} 27...
Nb4 {[%clk 0:00:48.9]} 28. Nxb4 {[%clk 0:01:30.5]} 28... axb4 {[%clk 0:00:50.3]}
29. Rc4 {[%clk 0:01:31.2]} 29... Red7 {[%clk 0:00:50.3]} 30. Kf3 {[%clk
0:01:19.3]} 30... b3 {[%clk 0:00:25.3]} 31. Rec1 {[%clk 0:01:16.9]} 31... c5
{[%clk 0:00:21.7]} 32. dxc5 {[%clk 0:01:16.9]} 32... bxc5 {[%clk 0:00:22.8]} 33.
Rxc5 {[%clk 0:01:18]} 33... Rd3+ {[%clk 0:00:24.3]} 34. Kg4 {[%clk 0:01:12.4]}
34... f5+ {[%clk 0:00:23.2]} 35. Kh4 {[%clk 0:01:09.9]} 35... Rg8 {[%clk
0:00:20.5]} 36. Rc7+ {[%clk 0:01:09.8]} 36... Kf6 {[%clk 0:00:21.9]} 37. Rxh7
{[%clk 0:00:58.9]} 37... Rd2 {[%clk 0:00:20.6]} 38. Rh6+ {[%clk 0:00:58.3]}
38... Kg7 {[%clk 0:00:15.9]} 39. Rxe6 {[%clk 0:00:57.2]} 39... Kf7 {[%clk
0:00:17]} 40. Rh6 {[%clk 0:00:54.3]} 40... Rh2# {[%clk 0:00:17.1]} 0

[Event "Open Nuevo Centro. Jornada 2"]
[Site "Chess.com"]
[Date "2020.06.26"]
[Round "4"]
[White "Cinà Asensio, Luca "]
[Black "Ferrando Lacruz, Nicolás "]
[Result "1-0"]
[WhiteElo "635"]
[BlackElo "1084"]
[TimeControl "180+2"]
[EndTime "11:12:34 PDT"]
[Termination "Victoria de Titanes34 por jaque mate"]

1. e3 {[%clk 0:03:01.9]} 1... g6 {[%clk 0:02:57.7]} 2. Bc4 {[%clk 0:03:00.2]}
2... Bg7 {[%clk 0:02:54.8]} 3. Qf3 {[%clk 0:02:59.4]} 3... Nf6 {[%clk
0:02:55.3]} 4. Qd1 {[%clk 0:02:59]} 4... O-O {[%clk 0:02:55.4]} 5. Nf3 {[%clk
0:02:56.9]} 5... d6 {[%clk 0:02:52.4]} 6. Ng5 {[%clk 0:02:56.4]} 6... e5 {[%clk
0:02:50.1]} 7. Nxf7 {[%clk 0:02:52.5]} 7... Re8 {[%clk 0:02:30.3]} 8. Nxd8+
{[%clk 0:02:42.7]} 8... Kh8 {[%clk 0:02:23.1]} 9. Nf7+ {[%clk 0:02:42.1]} 9...
Kg8 {[%clk 0:02:22.8]} 10. Ng5+ {[%clk 0:02:40.5]} 10... d5 {[%clk 0:02:21.9]}
11. Bxd5+ {[%clk 0:02:38.3]} 11... Nxd5 {[%clk 0:02:22.1]} 12. O-O {[%clk
0:02:35.9]} 12... e4 {[%clk 0:02:16.4]} 13. c4 {[%clk 0:02:35.4]} 13... Nf6
{[%clk 0:02:16.5]} 14. f3 {[%clk 0:02:33.7]} 14... Bh6 {[%clk 0:02:11.7]} 15.
fxe4 {[%clk 0:02:29.4]} 15... Bxg5 {[%clk 0:02:10.7]} 16. d4 {[%clk 0:02:25.1]}
16... Nxe4 {[%clk 0:02:05.4]} 17. Qd3 {[%clk 0:02:19.1]} 17... Bf5 {[%clk
0:02:01.2]} 18. g3 {[%clk 0:02:15.4]} 18... Bh3 {[%clk 0:01:44.5]} 19. Re1
{[%clk 0:02:05.1]} 19... Bf5 {[%clk 0:01:38.4]} 20. h4 {[%clk 0:02:02.4]} 20...
Nc5 {[%clk 0:01:34.1]} 21. Qa3 {[%clk 0:01:59.1]} 21... Bf6 {[%clk 0:01:26.3]}
22. dxc5 {[%clk 0:01:54.4]} 22... Nd7 {[%clk 0:01:23.1]} 23. c6 {[%clk 0:01:52]}
23... bxc6 {[%clk 0:01:22.9]} 24. c5 {[%clk 0:01:52.1]} 24... g5 {[%clk
0:01:14.1]} 25. Qb3+ {[%clk 0:01:49.1]} 25... Kh8 {[%clk 0:01:09.7]} 26. hxg5
{[%clk 0:01:47.8]} 26... Bxg5 {[%clk 0:01:06.5]} 27. Nd2 {[%clk 0:01:45.7]}
27... Rab8 {[%clk 0:01:01.9]} 28. Qc3+ {[%clk 0:01:37.5]} 28... Kg8 {[%clk
0:00:46.5]} 29. Qc4+ {[%clk 0:01:35.9]} 29... Kf8 {[%clk 0:00:45.4]} 30. Rf1
{[%clk 0:01:32.4]} 30... Bxe3+ {[%clk 0:00:41.6]} 31. Kh1 {[%clk 0:01:30.6]}
31... Ne5 {[%clk 0:00:36.4]} 32. Rxf5+ {[%clk 0:01:29.2]} 32... Kg7 {[%clk
0:00:32.2]} 33. Qe4 {[%clk 0:01:28.2]} 33... Nc4 {[%clk 0:00:21.4]} 34. Qxc4
{[%clk 0:01:21.6]} 34... Re6 {[%clk 0:00:11]} 35. Qxe6 {[%clk 0:01:20.6]} 35...
Bd4 {[%clk 0:00:09.6]} 36. Rf7+ {[%clk 0:01:18.6]} 36... Kg8 {[%clk 0:00:09]}
37. Ne4 {[%clk 0:01:10]} 37... Rf8 {[%clk 0:00:05.7]} 38. Ng5 {[%clk 0:01:08.1]}
38... Rxf7 {[%clk 0:00:05.7]} 39. Qxf7+ {[%clk 0:01:06.5]} 39... Kh8 {[%clk
0:00:06.5]} 40. Qxh7# {[%clk 0:01:05.4]} 1

[Event "Open Nuevo Centro. Jornada 2"]
[Site "Chess.com"]
[Date "2020.06.26"]
[Round "4"]
[White "Borissov, Julián"]
[Black "Silva Rodriguez, Fernando"]
[Result "1-0"]
[WhiteElo "1857"]
[BlackElo "2472"]
[TimeControl "180+2"]
[EndTime "11:12:45 PDT"]
[Termination "Victoria de julianborisov por abandono"]

1. e4 {[%clk 0:03:01.9]} 1... d5 {[%clk 0:03:01.2]} 2. exd5 {[%clk 0:02:58.4]}
2... Nf6 {[%clk 0:03:02.7]} 3. d4 {[%clk 0:02:51.1]} 3... Bg4 {[%clk 0:03:03.9]}
4. f3 {[%clk 0:02:47.8]} 4... Bf5 {[%clk 0:03:05]} 5. c4 {[%clk 0:02:47.9]} 5...
e6 {[%clk 0:03:06.2]} 6. dxe6 {[%clk 0:02:44.2]} 6... Nc6 {[%clk 0:03:06.9]} 7.
exf7+ {[%clk 0:02:39.5]} 7... Kxf7 {[%clk 0:03:08.8]} 8. Be3 {[%clk 0:02:33.3]}
8... Nb4 {[%clk 0:03:04.1]} 9. Na3 {[%clk 0:02:30.3]} 9... Bd6 {[%clk
0:02:40.1]} 10. Kf2 {[%clk 0:02:24]} 10... Re8 {[%clk 0:02:37]} 11. c5 {[%clk
0:02:20.2]} 11... Bf8 {[%clk 0:02:36.2]} 12. Qb3+ {[%clk 0:02:14.9]} 12... Nfd5
{[%clk 0:02:18.6]} 13. Bc4 {[%clk 0:02:13.2]} 13... Kf6 {[%clk 0:01:44.5]} 14.
Bd2 {[%clk 0:02:05.5]} 14... a5 {[%clk 0:01:35.2]} 15. g4 {[%clk 0:02:00.8]}
15... Be6 {[%clk 0:01:02.7]} 16. Re1 {[%clk 0:01:50.8]} 16... c6 {[%clk
0:01:02.7]} 17. h4 {[%clk 0:01:49.2]} 17... Kf7 {[%clk 0:01:02.5]} 18. Nh3
{[%clk 0:01:47]} 18... h6 {[%clk 0:01:01.5]} 19. g5 {[%clk 0:01:36.8]} 19... Qd7
{[%clk 0:00:53.7]} 20. Nf4 {[%clk 0:01:35.4]} 20... Nxf4 {[%clk 0:00:48.8]} 21.
Bxf4 {[%clk 0:01:36]} 21... Bd5 {[%clk 0:00:46.1]} 22. Bxd5+ {[%clk 0:01:21.2]}
22... Nxd5 {[%clk 0:00:43.6]} 23. Be5 {[%clk 0:01:20.6]} 23... hxg5 {[%clk
0:00:41.5]} 24. hxg5 {[%clk 0:01:18.7]} 24... Qf5 {[%clk 0:00:43]} 25. Nc4
{[%clk 0:01:16.6]} 25... Re6 {[%clk 0:00:35.2]} 26. Re4 {[%clk 0:01:14]} 26...
Qxg5 {[%clk 0:00:29.6]} 27. Rg4 {[%clk 0:01:12]} 27... Qf5 {[%clk 0:00:27.4]}
28. Qxb7+ {[%clk 0:01:11.7]} 28... Re7 {[%clk 0:00:16.5]} 29. Qxa8 {[%clk
0:01:06.7]} 29... Qc2+ {[%clk 0:00:17.5]} 30. Kg3 {[%clk 0:01:02.7]} 30... Qxc4
{[%clk 0:00:18.9]} 31. Qxc6 {[%clk 0:01:01.3]} 31... Ne3 {[%clk 0:00:03.4]} 32.
Qg6+ {[%clk 0:00:58.4]} 32... Kg8 {[%clk 0:00:03.1]} 33. Qh7+ {[%clk 0:00:50]}
33... Kf7 {[%clk 0:00:04.1]} 34. Rf4+ {[%clk 0:00:45.7]} 34... Ke8 {[%clk
0:00:04.7]} 35. Qg6+ {[%clk 0:00:45.9]} 35... Kd7 {[%clk 0:00:03.2]} 36. Qd6+
{[%clk 0:00:42.3]} 36... Kc8 {[%clk 0:00:04.1]} 37. Rxf8+ {[%clk 0:00:42.5]} 1